[Event "Late-Titled-Tuesday-Blitz-August-29-2023"]
[Site "Chess.com"]
[Date "2023.08.29"]
[Round "5"]
[White "ural58"]
[Black "Alexander_Moskalenko"]
[Result "0-1"]
[WhiteElo "2531"]
[BlackElo "2832"]
[TimeControl "180+1"]
[EndTime "14:55:46 PDT"]
[Termination "Alexander_Moskalenko won by resignation"]

1. e4 {[%clk 0:03:00.9]} 1... e6 {[%clk 0:02:52.5]} 2. d4 {[%clk 0:02:56.5]}
2... d5 {[%clk 0:02:52.1]} 3. Nc3 {[%clk 0:02:56.3]} 3... Nf6 {[%clk 0:02:51.6]}
4. Bg5 {[%clk 0:02:55.5]} 4... dxe4 {[%clk 0:02:51.2]} 5. Nxe4 {[%clk
0:02:54.9]} 5... Be7 {[%clk 0:02:51.6]} 6. Nxf6+ {[%clk 0:02:54.7]} 6... gxf6
{[%clk 0:02:52.3]} 7. Be3 {[%clk 0:02:39]} 7... b6 {[%clk 0:02:49.6]} 8. Bb5+
{[%clk 0:02:37]} 8... c6 {[%clk 0:02:49.1]} 9. Bd3 {[%clk 0:02:33.3]} 9... Bb7
{[%clk 0:02:49.3]} 10. Qg4 {[%clk 0:02:30.8]} 10... Qd5 {[%clk 0:02:41.7]} 11.
Nf3 {[%clk 0:02:16.9]} 11... Nd7 {[%clk 0:02:41.3]} 12. Qg7 {[%clk 0:02:15.1]}
12... Rf8 {[%clk 0:02:32.7]} 13. Qxh7 {[%clk 0:02:14]} 13... O-O-O {[%clk
0:02:26.8]} 14. Qe4 {[%clk 0:02:12.5]} 14... Qa5+ {[%clk 0:02:06.5]} 15. Bd2
{[%clk 0:02:11.6]} 15... Qh5 {[%clk 0:01:55.9]} 16. Qh4 {[%clk 0:02:08.8]} 16...
Qxh4 {[%clk 0:01:51.8]} 17. Nxh4 {[%clk 0:02:08.9]} 17... f5 {[%clk 0:01:52.7]}
18. Nf3 {[%clk 0:02:08.3]} 18... c5 {[%clk 0:01:53.3]} 19. O-O-O {[%clk
0:02:01.9]} 19... cxd4 {[%clk 0:01:41]} 20. Nxd4 {[%clk 0:02:00.6]} 20... Nc5
{[%clk 0:01:41.4]} 21. Bc3 {[%clk 0:01:26]} 21... Nxd3+ {[%clk 0:01:23.2]} 22.
Rxd3 {[%clk 0:01:25.1]} 22... Bxg2 {[%clk 0:01:23.8]} 23. Re1 {[%clk 0:01:18]}
23... Be4 {[%clk 0:01:20.3]} 24. Rh3 {[%clk 0:01:13.3]} 24... Rh8 {[%clk
0:00:40.8]} 25. Rxh8 {[%clk 0:01:12.2]} 25... Rxh8 {[%clk 0:00:40.5]} 26. Nxf5
{[%clk 0:01:06.6]} 26... Bg5+ {[%clk 0:00:32.4]} 27. Kb1 {[%clk 0:00:59.9]}
27... Rd8 {[%clk 0:00:33]} 28. Ng3 {[%clk 0:00:55.8]} 28... Bg6 {[%clk
0:00:31.9]} 29. Rh1 {[%clk 0:00:44.9]} 29... Bh4 {[%clk 0:00:29.6]} 30. f4
{[%clk 0:00:41.5]} 30... Rd5 {[%clk 0:00:27.9]} 31. Rf1 {[%clk 0:00:35.6]} 31...
a5 {[%clk 0:00:28]} 32. a3 {[%clk 0:00:35.4]} 32... Kb7 {[%clk 0:00:28.4]} 33.
b3 {[%clk 0:00:25]} 33... Be7 {[%clk 0:00:27.6]} 34. Kb2 {[%clk 0:00:22.1]}
34... Rc5 {[%clk 0:00:28.3]} 35. Bd4 {[%clk 0:00:20.4]} 35... Rd5 {[%clk
0:00:27.9]} 36. c3 {[%clk 0:00:19.6]} 36... b5 {[%clk 0:00:26.3]} 37. Rf2 {[%clk
0:00:17.6]} 37... b4 {[%clk 0:00:26.1]} 38. axb4 {[%clk 0:00:17.8]} 38... axb4
{[%clk 0:00:27]} 39. Rd2 {[%clk 0:00:17.7]} 39... Kc6 {[%clk 0:00:22.8]} 40. Ne2
{[%clk 0:00:16.6]} 40... bxc3+ {[%clk 0:00:21.2]} 41. Bxc3 {[%clk 0:00:16.3]}
41... Rh5 {[%clk 0:00:21.8]} 42. Nd4+ {[%clk 0:00:15.7]} 42... Kb7 {[%clk
0:00:22.3]} 43. f5 {[%clk 0:00:14.8]} 43... exf5 {[%clk 0:00:16.4]} 44. Nf3
{[%clk 0:00:12.5]} 44... Bc5 {[%clk 0:00:10.4]} 45. h4 {[%clk 0:00:10.5]} 45...
f4 {[%clk 0:00:10.1]} 46. Bf6 {[%clk 0:00:08.8]} 46... Be3 {[%clk 0:00:10]} 47.
Rd7+ {[%clk 0:00:08.1]} 47... Kc6 {[%clk 0:00:09.8]} 48. Rd8 {[%clk 0:00:06.7]}
48... Be4 {[%clk 0:00:09.7]} 49. Ne5+ {[%clk 0:00:05.6]} 49... Kc7 {[%clk
0:00:10.2]} 50. Rf8 {[%clk 0:00:04.4]} 50... Bd4+ {[%clk 0:00:09.3]} 51. Ka3
{[%clk 0:00:03.4]} 51... Bxe5 {[%clk 0:00:10.2]} 52. Rxf7+ {[%clk 0:00:03.5]}
52... Kd6 {[%clk 0:00:09.8]} 53. Bxe5+ {[%clk 0:00:03.8]} 53... Kxe5 {[%clk
0:00:10.7]} 54. b4 {[%clk 0:00:03.2]} 54... f3 {[%clk 0:00:10.5]} 55. b5 {[%clk
0:00:03.6]} 55... Bf5 {[%clk 0:00:09.8]} 56. b6 {[%clk 0:00:03.4]} 56... f2
{[%clk 0:00:08.4]} 57. b7 {[%clk 0:00:03.5]} 57... Rh8 {[%clk 0:00:09.1]} 58.
Re7+ {[%clk 0:00:02.9]} 58... Kf6 {[%clk 0:00:08]} 0-1

[Event "Late-Titled-Tuesday-Blitz-August-29-2023"]
[Site "Chess.com"]
[Date "2023.08.29"]
[Round "5"]
[White "Berant"]
[Black "Fonsofan"]
[Result "0-1"]
[WhiteElo "2374"]
[BlackElo "2677"]
[TimeControl "180+1"]
[EndTime "14:55:48 PDT"]
[Termination "Fonsofan won by checkmate"]

1. e3 {[%clk 0:02:58.1]} 1... d5 {[%clk 0:02:58.4]} 2. d4 {[%clk 0:02:56]} 2...
Nf6 {[%clk 0:02:56.9]} 3. Nf3 {[%clk 0:02:55.7]} 3... c5 {[%clk 0:02:52.7]} 4.
b3 {[%clk 0:02:54.8]} 4... Bg4 {[%clk 0:02:43.8]} 5. h3 {[%clk 0:02:51.9]} 5...
Bxf3 {[%clk 0:02:42.6]} 6. Qxf3 {[%clk 0:02:51]} 6... cxd4 {[%clk 0:02:42.3]} 7.
exd4 {[%clk 0:02:50.9]} 7... e6 {[%clk 0:02:43.2]} 8. Bb2 {[%clk 0:02:47]} 8...
Nc6 {[%clk 0:02:43.1]} 9. Nd2 {[%clk 0:02:46.6]} 9... Rc8 {[%clk 0:02:34.2]} 10.
a3 {[%clk 0:02:45.8]} 10... Qb6 {[%clk 0:02:32.2]} 11. Qe3 {[%clk 0:02:29.3]}
11... g6 {[%clk 0:02:31.8]} 12. Bd3 {[%clk 0:02:25.6]} 12... Bg7 {[%clk
0:02:31.5]} 13. O-O {[%clk 0:02:24.7]} 13... O-O {[%clk 0:02:28.8]} 14. Nf3
{[%clk 0:02:24.7]} 14... Nd7 {[%clk 0:02:28.3]} 15. Rac1 {[%clk 0:02:21.1]}
15... a5 {[%clk 0:02:28.5]} 16. h4 {[%clk 0:02:15.8]} 16... a4 {[%clk
0:02:25.4]} 17. b4 {[%clk 0:02:12.4]} 17... Nf6 {[%clk 0:02:19.4]} 18. Qf4
{[%clk 0:02:02.2]} 18... Qc7 {[%clk 0:02:17.4]} 19. Ne5 {[%clk 0:01:59]} 19...
h5 {[%clk 0:01:48.1]} 20. Rfe1 {[%clk 0:01:50.9]} 20... Nd7 {[%clk 0:01:44.3]}
21. Qg3 {[%clk 0:01:42.9]} 21... Ncxe5 {[%clk 0:01:41.1]} 22. dxe5 {[%clk
0:01:42.5]} 22... Nb6 {[%clk 0:01:41.7]} 23. Qg5 {[%clk 0:01:35.5]} 23... Qd8
{[%clk 0:01:38.4]} 24. Qf4 {[%clk 0:01:27.9]} 24... Kh7 {[%clk 0:01:34.7]} 25.
Qf3 {[%clk 0:01:26]} 25... Kg8 {[%clk 0:01:25.8]} 26. g3 {[%clk 0:01:21.2]}
26... Nc4 {[%clk 0:01:26]} 27. Bd4 {[%clk 0:01:16.9]} 27... Nxa3 {[%clk
0:01:23.8]} 28. Bxg6 {[%clk 0:01:16.7]} 28... fxg6 {[%clk 0:01:16.2]} 29. Qxa3
{[%clk 0:01:16.7]} 29... b5 {[%clk 0:01:16.9]} 30. Qd3 {[%clk 0:01:16]} 30...
Qe8 {[%clk 0:01:17.5]} 31. Bc5 {[%clk 0:01:13.8]} 31... Rf5 {[%clk 0:01:16.6]}
32. Re3 {[%clk 0:01:10.1]} 32... Rc7 {[%clk 0:01:04.5]} 33. g4 {[%clk
0:00:58.8]} 33... hxg4 {[%clk 0:01:00.7]} 34. Rg3 {[%clk 0:00:58.8]} 34... Rf4
{[%clk 0:00:58.4]} 35. Qe2 {[%clk 0:00:53.5]} 35... Re4 {[%clk 0:00:42.2]} 36.
Qd1 {[%clk 0:00:53.1]} 36... Bxe5 {[%clk 0:00:34.2]} 37. Rxg4 {[%clk 0:00:53]}
37... Qf7 {[%clk 0:00:20.6]} 38. Rxe4 {[%clk 0:00:51.7]} 38... dxe4 {[%clk
0:00:21.5]} 39. Qg4 {[%clk 0:00:51.4]} 39... Qf5 {[%clk 0:00:20]} 40. Qg2 {[%clk
0:00:48.4]} 40... Rf7 {[%clk 0:00:19.8]} 41. Rd1 {[%clk 0:00:47.8]} 41... Kh7
{[%clk 0:00:19.4]} 42. Rd8 {[%clk 0:00:34.5]} 42... Qf3 {[%clk 0:00:16.4]} 43.
Qg5 {[%clk 0:00:27.8]} 43... Qf5 {[%clk 0:00:13.5]} 44. Qg2 {[%clk 0:00:23.2]}
44... Qf3 {[%clk 0:00:12.5]} 45. Qg5 {[%clk 0:00:22.8]} 45... Qf4 {[%clk
0:00:12.8]} 46. Qg2 {[%clk 0:00:17.9]} 46... Qxh4 {[%clk 0:00:11.8]} 47. Be3
{[%clk 0:00:13.6]} 47... Qxd8 {[%clk 0:00:09.7]} 48. Qh3+ {[%clk 0:00:11.5]}
48... Kg8 {[%clk 0:00:09.2]} 49. Qh6 {[%clk 0:00:11.7]} 49... Qf6 {[%clk
0:00:09.2]} 50. Bc5 {[%clk 0:00:09.5]} 50... Qf5 {[%clk 0:00:09.1]} 51. Be3
{[%clk 0:00:04.4]} 51... Bg7 {[%clk 0:00:09.5]} 52. Qh2 {[%clk 0:00:03.8]} 52...
a3 {[%clk 0:00:09.8]} 53. Qb8+ {[%clk 0:00:04.3]} 53... Rf8 {[%clk 0:00:10.2]}
54. Qa7 {[%clk 0:00:04.4]} 54... Qg4+ {[%clk 0:00:10.3]} 55. Kf1 {[%clk
0:00:04.3]} 55... Qd1+ {[%clk 0:00:10.8]} 56. Kg2 {[%clk 0:00:04.6]} 56... Qf3+
{[%clk 0:00:11.3]} 57. Kf1 {[%clk 0:00:04.5]} 57... Qxe3 {[%clk 0:00:11.1]} 58.
Qxe3 {[%clk 0:00:04.7]} 58... a2 {[%clk 0:00:11.5]} 59. Qb3 {[%clk 0:00:04.6]}
59... a1=Q+ {[%clk 0:00:11.5]} 60. Ke2 {[%clk 0:00:05.1]} 60... Qe5 {[%clk
0:00:10.3]} 61. Qh3 {[%clk 0:00:02.9]} 61... Qf5 {[%clk 0:00:10.2]} 62. Kd1
{[%clk 0:00:03]} 62... Qxh3 {[%clk 0:00:10.1]} 63. Kc1 {[%clk 0:00:03.9]} 63...
Qf3 {[%clk 0:00:10.7]} 64. Kb1 {[%clk 0:00:04.7]} 64... Qxf2 {[%clk 0:00:11.1]}
65. Ka2 {[%clk 0:00:05.6]} 65... Qxc2+ {[%clk 0:00:10.8]} 66. Ka3 {[%clk
0:00:06]} 66... Qb2# {[%clk 0:00:11.7]} 0-1

[Event "Late-Titled-Tuesday-Blitz-August-29-2023"]
[Site "Chess.com"]
[Date "2023.08.29"]
[Round "5"]
[White "SergioMoralesG"]
[Black "DenizSeyhanoglu1"]
[Result "1/2-1/2"]
[WhiteElo "2435"]
[BlackElo "2317"]
[TimeControl "180+1"]
[EndTime "14:55:49 PDT"]
[Termination "Game drawn by repetition"]

1. d4 {[%clk 0:02:43.3]} 1... d5 {[%clk 0:02:59.5]} 2. c4 {[%clk 0:02:41.3]}
2... c6 {[%clk 0:02:59]} 3. Nf3 {[%clk 0:02:40.7]} 3... Nf6 {[%clk 0:02:59]} 4.
Nc3 {[%clk 0:02:40.6]} 4... a6 {[%clk 0:02:59.2]} 5. c5 {[%clk 0:02:39.8]} 5...
g6 {[%clk 0:02:58.4]} 6. Bf4 {[%clk 0:02:39.5]} 6... Bg7 {[%clk 0:02:58.6]} 7.
h3 {[%clk 0:02:40.1]} 7... O-O {[%clk 0:02:58.8]} 8. e3 {[%clk 0:02:40.4]} 8...
Nbd7 {[%clk 0:02:45.4]} 9. Be2 {[%clk 0:02:39.9]} 9... Ne8 {[%clk 0:02:43.5]}
10. Ne5 {[%clk 0:02:36.4]} 10... Nc7 {[%clk 0:02:38]} 11. O-O {[%clk 0:02:31.9]}
11... Nxe5 {[%clk 0:02:36.7]} 12. Bxe5 {[%clk 0:02:28.1]} 12... f6 {[%clk
0:02:33.5]} 13. Bh2 {[%clk 0:02:18.8]} 13... e5 {[%clk 0:02:32.1]} 14. e4 {[%clk
0:02:06]} 14... exd4 {[%clk 0:02:29.5]} 15. Qxd4 {[%clk 0:02:05.1]} 15... f5
{[%clk 0:02:24.9]} 16. e5 {[%clk 0:01:54]} 16... Ne6 {[%clk 0:02:20]} 17. Qb4
{[%clk 0:01:54]} 17... Qe7 {[%clk 0:02:05.4]} 18. Na4 {[%clk 0:01:51.6]} 18...
a5 {[%clk 0:02:02.6]} 19. Qc3 {[%clk 0:01:45.6]} 19... f4 {[%clk 0:01:56.7]} 20.
Bg4 {[%clk 0:01:35.9]} 20... Ng5 {[%clk 0:01:46.9]} 21. Nb6 {[%clk 0:01:07.3]}
21... Bxg4 {[%clk 0:01:44.5]} 22. Nxa8 {[%clk 0:01:02.7]} 22... Bxh3 {[%clk
0:01:43.7]} 23. f3 {[%clk 0:00:44.1]} 23... Bxe5 {[%clk 0:00:51.9]} 24. Rae1
{[%clk 0:00:39.2]} 24... Bxc3 {[%clk 0:00:35.9]} 25. Rxe7 {[%clk 0:00:38.9]}
25... Bxb2 {[%clk 0:00:36.6]} 26. gxh3 {[%clk 0:00:31]} 26... Rxa8 {[%clk
0:00:28.2]} 27. Kg2 {[%clk 0:00:29.3]} 27... Nf7 {[%clk 0:00:18.6]} 28. Bxf4
{[%clk 0:00:28.7]} 28... Bd4 {[%clk 0:00:16.1]} 29. Rc1 {[%clk 0:00:25.6]} 29...
g5 {[%clk 0:00:14.1]} 30. Bg3 {[%clk 0:00:21.9]} 30... Ra7 {[%clk 0:00:13.4]}
31. Bf2 {[%clk 0:00:14.5]} 31... Bxf2 {[%clk 0:00:12.6]} 32. Kxf2 {[%clk
0:00:15.4]} 32... Kf8 {[%clk 0:00:11.5]} 33. Rce1 {[%clk 0:00:10.2]} 33... a4
{[%clk 0:00:12]} 34. Re8+ {[%clk 0:00:09.6]} 34... Kg7 {[%clk 0:00:12.5]} 35.
R1e7 {[%clk 0:00:09.3]} 35... Kf6 {[%clk 0:00:10.1]} 36. Rc7 {[%clk 0:00:05.9]}
36... Kg6 {[%clk 0:00:09.3]} 37. Rg8+ {[%clk 0:00:05.7]} 37... Kf6 {[%clk
0:00:09.2]} 38. Rf8 {[%clk 0:00:06.1]} 38... Ra5 {[%clk 0:00:09.4]} 39. Rfxf7+
{[%clk 0:00:07]} 39... Ke5 {[%clk 0:00:10]} 40. Rxh7 {[%clk 0:00:07.2]} 40...
Rxc5 {[%clk 0:00:09.2]} 41. Rxb7 {[%clk 0:00:07]} 41... Rc2+ {[%clk 0:00:08.4]}
42. Kg3 {[%clk 0:00:07.9]} 42... Rxa2 {[%clk 0:00:08.9]} 43. Rhe7+ {[%clk
0:00:08.1]} 43... Kd4 {[%clk 0:00:09.2]} 44. Ra7 {[%clk 0:00:06.5]} 44... c5
{[%clk 0:00:09.2]} 45. Ra5 {[%clk 0:00:06.2]} 45... c4 {[%clk 0:00:06.7]} 46.
Rd7 {[%clk 0:00:06.4]} 46... Kc3 {[%clk 0:00:07.1]} 47. Rdxd5 {[%clk 0:00:06.7]}
47... a3 {[%clk 0:00:07.5]} 48. Ra4 {[%clk 0:00:06.3]} 48... Kb3 {[%clk
0:00:05.6]} 49. Ra8 {[%clk 0:00:06.2]} 49... Ra1 {[%clk 0:00:04.2]} 50. Rb5+
{[%clk 0:00:06]} 50... Kc2 {[%clk 0:00:04.1]} 51. Rba5 {[%clk 0:00:06]} 51...
Kb2 {[%clk 0:00:02.5]} 52. Rxg5 {[%clk 0:00:06.2]} 52... Rg1+ {[%clk 0:00:01.6]}
53. Kf4 {[%clk 0:00:05.2]} 53... Rxg5 {[%clk 0:00:02.5]} 54. Kxg5 {[%clk
0:00:06]} 54... c3 {[%clk 0:00:03]} 55. h4 {[%clk 0:00:05.7]} 55... c2 {[%clk
0:00:03.5]} 56. Rb8+ {[%clk 0:00:05.7]} 56... Ka2 {[%clk 0:00:03]} 57. Rc8
{[%clk 0:00:06]} 57... Kb1 {[%clk 0:00:03.2]} 58. Rb8+ {[%clk 0:00:06.2]} 58...
Ka2 {[%clk 0:00:02.8]} 59. Rc8 {[%clk 0:00:05.3]} 59... Kb2 {[%clk 0:00:02.9]}
60. Rb8+ {[%clk 0:00:04.6]} 60... Ka1 {[%clk 0:00:02.9]} 61. Rc8 {[%clk
0:00:04.7]} 61... Kb2 {[%clk 0:00:03.4]} 62. Rb8+ {[%clk 0:00:04.8]} 1/2-1/2

[Event "Late-Titled-Tuesday-Blitz-August-29-2023"]
[Site "Chess.com"]
[Date "2023.08.29"]
[Round "5"]
[White "Elsa167"]
[Black "ahkashefi2800"]
[Result "1-0"]
[WhiteElo "2879"]
[BlackElo "2579"]
[TimeControl "180+1"]
[EndTime "14:56:01 PDT"]
[Termination "Elsa167 won on time"]

1. d4 {[%clk 0:03:00.9]} 1... d5 {[%clk 0:02:42.9]} 2. c4 {[%clk 0:03:00.8]}
2... c6 {[%clk 0:02:42.6]} 3. cxd5 {[%clk 0:03:00.9]} 3... cxd5 {[%clk
0:02:42.6]} 4. Bf4 {[%clk 0:03:01.5]} 4... Nf6 {[%clk 0:02:43.4]} 5. e3 {[%clk
0:03:01.6]} 5... Nc6 {[%clk 0:02:43.7]} 6. Nc3 {[%clk 0:03:02.2]} 6... a6 {[%clk
0:02:44.3]} 7. Be2 {[%clk 0:03:02.4]} 7... Bf5 {[%clk 0:02:43.9]} 8. Nf3 {[%clk
0:03:02.9]} 8... e6 {[%clk 0:02:43.9]} 9. Qb3 {[%clk 0:03:03.4]} 9... Ra7 {[%clk
0:02:27.8]} 10. Ne5 {[%clk 0:03:02.7]} 10... Nxe5 {[%clk 0:02:22.7]} 11. Bxe5
{[%clk 0:03:03.6]} 11... Bd6 {[%clk 0:02:20]} 12. Qa4+ {[%clk 0:03:01.3]} 12...
Ke7 {[%clk 0:02:15.2]} 13. Bxd6+ {[%clk 0:02:26.6]} 13... Qxd6 {[%clk
0:02:14.9]} 14. Nb5 {[%clk 0:02:26.3]} 14... axb5 {[%clk 0:02:15.5]} 15. Qxa7
{[%clk 0:02:26.4]} 15... Qb4+ {[%clk 0:02:16.2]} 16. Kf1 {[%clk 0:02:26.1]}
16... Ne4 {[%clk 0:02:16.7]} 17. Qa3 {[%clk 0:02:24.2]} 17... Qxa3 {[%clk
0:02:11.6]} 18. bxa3 {[%clk 0:02:25.1]} 18... Ra8 {[%clk 0:02:11.3]} 19. Bxb5
{[%clk 0:02:21.7]} 19... Rxa3 {[%clk 0:02:11.7]} 20. h3 {[%clk 0:01:42.5]} 20...
Rc3 {[%clk 0:02:08.3]} 21. g4 {[%clk 0:01:35.2]} 21... Bg6 {[%clk 0:02:07.5]}
22. Kg2 {[%clk 0:01:19.3]} 22... Rc2 {[%clk 0:02:07.2]} 23. Rhf1 {[%clk
0:01:19.1]} 23... Nc3 {[%clk 0:01:55.7]} 24. a4 {[%clk 0:01:16.7]} 24... Rb2
{[%clk 0:01:53.5]} 25. Rac1 {[%clk 0:01:11.5]} 25... Be4+ {[%clk 0:01:50.5]} 26.
Kg3 {[%clk 0:01:09.6]} 26... Nxb5 {[%clk 0:01:49.1]} 27. axb5 {[%clk 0:01:09.2]}
27... Rxb5 {[%clk 0:01:50]} 28. Rc7+ {[%clk 0:01:09.2]} 28... Kf6 {[%clk
0:01:49.9]} 29. h4 {[%clk 0:00:57.8]} 29... h6 {[%clk 0:01:46.2]} 30. f3 {[%clk
0:00:54.3]} 30... Bd3 {[%clk 0:01:45.2]} 31. Rd1 {[%clk 0:00:49]} 31... Rb3
{[%clk 0:01:43.9]} 32. h5 {[%clk 0:00:41.6]} 32... Bc4 {[%clk 0:01:33.9]} 33.
Kf4 {[%clk 0:00:40.5]} 33... g5+ {[%clk 0:01:30.5]} 34. hxg6 {[%clk 0:00:40.3]}
34... fxg6 {[%clk 0:01:31.2]} 35. Rh1 {[%clk 0:00:38.8]} 35... g5+ {[%clk
0:01:27.6]} 36. Kg3 {[%clk 0:00:39.1]} 36... Kg6 {[%clk 0:01:28.1]} 37. Re7
{[%clk 0:00:38.5]} 37... Rxe3 {[%clk 0:01:27.3]} 38. Rxb7 {[%clk 0:00:35.3]}
38... Bd3 {[%clk 0:00:44.1]} 39. Rh2 {[%clk 0:00:23.9]} 39... Be4 {[%clk
0:00:37.5]} 40. Rf2 {[%clk 0:00:23.4]} 40... h5 {[%clk 0:00:17.9]} 41. gxh5+
{[%clk 0:00:21.4]} 41... Kxh5 {[%clk 0:00:18.8]} 42. Rbb2 {[%clk 0:00:16.7]}
42... Bf5 {[%clk 0:00:15.9]} 43. Rbe2 {[%clk 0:00:14]} 43... Rd3 {[%clk
0:00:15.6]} 44. Rd2 {[%clk 0:00:14.2]} 44... Rc3 {[%clk 0:00:16.1]} 45. Kg2
{[%clk 0:00:13.1]} 45... Kg6 {[%clk 0:00:16]} 46. Rfe2 {[%clk 0:00:12.8]} 46...
Rb3 {[%clk 0:00:14.5]} 47. Kf2 {[%clk 0:00:13.1]} 47... Kf6 {[%clk 0:00:14.2]}
48. Re3 {[%clk 0:00:13.3]} 48... Rb4 {[%clk 0:00:13.2]} 49. Rc3 {[%clk
0:00:13.6]} 49... Ra4 {[%clk 0:00:13]} 50. Rc8 {[%clk 0:00:12.8]} 50... Ra3
{[%clk 0:00:11.4]} 51. Rf8+ {[%clk 0:00:12.9]} 51... Kg7 {[%clk 0:00:11.6]} 52.
Rb8 {[%clk 0:00:12.3]} 52... Rc3 {[%clk 0:00:09.6]} 53. Ra2 {[%clk 0:00:11.8]}
53... Rc7 {[%clk 0:00:02.8]} 54. Rba8 {[%clk 0:00:11.1]} 54... Rc2+ {[%clk
0:00:02.6]} 55. Rxc2 {[%clk 0:00:11]} 55... Bxc2 {[%clk 0:00:03.5]} 56. Kg3
{[%clk 0:00:08.5]} 56... Bf5 {[%clk 0:00:04.4]} 57. f4 {[%clk 0:00:09]} 57...
gxf4+ {[%clk 0:00:03.3]} 58. Kxf4 {[%clk 0:00:09.9]} 58... Kg6 {[%clk
0:00:02.4]} 59. Ke5 {[%clk 0:00:09.6]} 59... Kh5 {[%clk 0:00:02.3]} 60. Rg8
{[%clk 0:00:10]} 60... Kh4 {[%clk 0:00:02.7]} 61. Rg7 {[%clk 0:00:09.3]} 61...
Kh5 {[%clk 0:00:02.9]} 62. Kf6 {[%clk 0:00:09.1]} 62... Kh4 {[%clk 0:00:03]} 63.
Rg5 {[%clk 0:00:09.4]} 63... Bg4 {[%clk 0:00:01.7]} 64. Rxg4+ {[%clk 0:00:08.5]}
64... Kxg4 {[%clk 0:00:01.9]} 65. Kxe6 {[%clk 0:00:09.2]} 1-0

[Event "Late-Titled-Tuesday-Blitz-August-29-2023"]
[Site "Chess.com"]
[Date "2023.08.29"]
[Round "5"]
[White "TanitoluwaAps116"]
[Black "AndreiITrifan"]
[Result "0-1"]
[WhiteElo "2768"]
[BlackElo "2581"]
[TimeControl "180+1"]
[EndTime "14:56:04 PDT"]
[Termination "AndreiITrifan won by checkmate"]

1. e4 {[%clk 0:02:54.3]} 1... e5 {[%clk 0:02:59.7]} 2. Nf3 {[%clk 0:02:52]} 2...
Nc6 {[%clk 0:03:00.2]} 3. Nc3 {[%clk 0:02:48.5]} 3... Nf6 {[%clk 0:02:59.7]} 4.
Bb5 {[%clk 0:02:40.4]} 4... Nd4 {[%clk 0:02:59.5]} 5. O-O {[%clk 0:02:35.6]}
5... Nxf3+ {[%clk 0:02:51.7]} 6. Qxf3 {[%clk 0:02:00]} 6... c6 {[%clk
0:02:51.3]} 7. Bc4 {[%clk 0:01:57.7]} 7... Bd6 {[%clk 0:02:31.9]} 8. d3 {[%clk
0:01:49.4]} 8... O-O {[%clk 0:02:31.5]} 9. Bg5 {[%clk 0:01:47.4]} 9... Be7
{[%clk 0:02:31.7]} 10. Rae1 {[%clk 0:01:42.6]} 10... d6 {[%clk 0:02:31.3]} 11.
Qe2 {[%clk 0:01:37.3]} 11... Be6 {[%clk 0:02:25]} 12. Bb3 {[%clk 0:01:34]} 12...
a5 {[%clk 0:02:23.4]} 13. f4 {[%clk 0:01:32.2]} 13... exf4 {[%clk 0:02:22.8]}
14. Rxf4 {[%clk 0:01:31]} 14... Bxb3 {[%clk 0:02:05.8]} 15. axb3 {[%clk
0:01:29.7]} 15... Nh5 {[%clk 0:02:05.2]} 16. Qxh5 {[%clk 0:01:20.9]} 16... Bxg5
{[%clk 0:02:05.1]} 17. Rf3 {[%clk 0:01:17]} 17... Bd2 {[%clk 0:01:58.4]} 18.
Ref1 {[%clk 0:01:15.3]} 18... Qg5 {[%clk 0:01:44.8]} 19. Qh3 {[%clk 0:01:07.7]}
19... Qc5+ {[%clk 0:01:34.8]} 20. Kh1 {[%clk 0:01:00.8]} 20... Bxc3 {[%clk
0:01:33.2]} 21. bxc3 {[%clk 0:00:59.4]} 21... Qxc3 {[%clk 0:01:34.1]} 22. Qh5
{[%clk 0:00:50.2]} 22... g6 {[%clk 0:01:25.5]} 23. Qh4 {[%clk 0:00:46.2]} 23...
a4 {[%clk 0:01:21.2]} 24. bxa4 {[%clk 0:00:42.8]} 24... Rxa4 {[%clk 0:01:20.3]}
25. Qe7 {[%clk 0:00:37.2]} 25... Ra1 {[%clk 0:01:11.3]} 26. h4 {[%clk
0:00:30.1]} 26... Rxf1+ {[%clk 0:01:06.8]} 27. Rxf1 {[%clk 0:00:31]} 27... Qxc2
{[%clk 0:01:05.6]} 28. h5 {[%clk 0:00:25.8]} 28... Qe2 {[%clk 0:00:58.6]} 29.
Rf3 {[%clk 0:00:22.7]} 29... Qe1+ {[%clk 0:00:45]} 30. Kh2 {[%clk 0:00:21.7]}
30... Qa5 {[%clk 0:00:36.7]} 31. hxg6 {[%clk 0:00:13.9]} 31... Qe5+ {[%clk
0:00:35.5]} 32. Qxe5 {[%clk 0:00:13.6]} 32... dxe5 {[%clk 0:00:36.4]} 33. gxh7+
{[%clk 0:00:12.1]} 33... Kxh7 {[%clk 0:00:36.6]} 34. Rf5 {[%clk 0:00:12.8]}
34... f6 {[%clk 0:00:36.4]} 35. g4 {[%clk 0:00:10.1]} 35... Kg6 {[%clk
0:00:32.6]} 36. g5 {[%clk 0:00:10.4]} 36... Rh8+ {[%clk 0:00:21.2]} 37. Kg2
{[%clk 0:00:09.1]} 37... fxg5 {[%clk 0:00:20.6]} 38. Rxe5 {[%clk 0:00:09.6]}
38... Rd8 {[%clk 0:00:20.7]} 39. Re7 {[%clk 0:00:03.4]} 39... Rxd3 {[%clk
0:00:17.5]} 40. Rxb7 {[%clk 0:00:03.6]} 40... Re3 {[%clk 0:00:17.4]} 41. Rb6
{[%clk 0:00:03.5]} 41... Rxe4 {[%clk 0:00:16.9]} 42. Rxc6+ {[%clk 0:00:03.9]}
42... Kh5 {[%clk 0:00:17.5]} 43. Kf3 {[%clk 0:00:03.5]} 43... Rf4+ {[%clk
0:00:17.5]} 44. Kg3 {[%clk 0:00:04.1]} 44... Rg4+ {[%clk 0:00:17.4]} 45. Kh3
{[%clk 0:00:04.6]} 45... Ra4 {[%clk 0:00:16.6]} 46. Rc5 {[%clk 0:00:04.4]} 46...
Ra3+ {[%clk 0:00:16.7]} 47. Kg2 {[%clk 0:00:04.6]} 47... Kh4 {[%clk 0:00:17.3]}
48. Rc4+ {[%clk 0:00:04]} 48... g4 {[%clk 0:00:17.4]} 49. Rc8 {[%clk 0:00:03]}
49... Ra2+ {[%clk 0:00:17.4]} 50. Kg1 {[%clk 0:00:03.5]} 50... Kh3 {[%clk
0:00:16.7]} 51. Rh8+ {[%clk 0:00:01.9]} 51... Kg3 {[%clk 0:00:16.8]} 52. Kf1
{[%clk 0:00:02.8]} 52... Ra1+ {[%clk 0:00:16.2]} 53. Ke2 {[%clk 0:00:03.2]}
53... Rg1 {[%clk 0:00:16]} 54. Rg8 {[%clk 0:00:03.8]} 54... Rg2+ {[%clk
0:00:15.4]} 55. Ke3 {[%clk 0:00:03.8]} 55... Ra2 {[%clk 0:00:14.6]} 56. Rg7
{[%clk 0:00:03.3]} 56... Kh3 {[%clk 0:00:14.2]} 57. Kf4 {[%clk 0:00:03.4]} 57...
Rf2+ {[%clk 0:00:14.1]} 58. Ke3 {[%clk 0:00:03.8]} 58... Rf8 {[%clk 0:00:14.1]}
59. Rh7+ {[%clk 0:00:03.5]} 59... Kg2 {[%clk 0:00:14.1]} 60. Rg7 {[%clk
0:00:04.2]} 60... g3 {[%clk 0:00:14.5]} 61. Ke2 {[%clk 0:00:05.1]} 61... Kh2
{[%clk 0:00:13.3]} 62. Rh7+ {[%clk 0:00:05]} 62... Kg1 {[%clk 0:00:13.5]} 63.
Rh3 {[%clk 0:00:05.3]} 63... g2 {[%clk 0:00:13.8]} 64. Rh7 {[%clk 0:00:05.4]}
64... Re8+ {[%clk 0:00:12.5]} 65. Kf3 {[%clk 0:00:05.1]} 65... Kf1 {[%clk
0:00:12.2]} 66. Ra7 {[%clk 0:00:04.3]} 66... g1=Q {[%clk 0:00:11.6]} 67. Ra1+
{[%clk 0:00:04.9]} 67... Re1 {[%clk 0:00:12.1]} 68. Ra2 {[%clk 0:00:05.2]} 68...
Re3+ {[%clk 0:00:11.6]} 69. Kf4 {[%clk 0:00:05.2]} 69... Qg3+ {[%clk 0:00:12.5]}
70. Kf5 {[%clk 0:00:06.1]} 70... Re5+ {[%clk 0:00:12.9]} 71. Kf6 {[%clk
0:00:07]} 71... Qg5+ {[%clk 0:00:13.6]} 72. Kf7 {[%clk 0:00:07.9]} 72... Re7+
{[%clk 0:00:14.1]} 73. Kf8 {[%clk 0:00:08.8]} 73... Qg7# {[%clk 0:00:14.7]} 0-1